bitfinex-derivatives/quotes_SOLF0:USTF0_20240816
["timestamp","ask_amount","ask_price","bid_price","bid_amount"]
[1723821420757,3.6015,138.8,138.79,0.04657471]
[1723821422254,64.82,138.8,138.71,6.0]
[1723821422858,3.6028,138.76,138.7,64.82]
[1723821423060,64.82,138.8,138.7,64.82]
[1723821423252,70.82,138.8,138.74,0.04849663]
[1723821423559,0.04948762,138.76,138.74,0.04849663]
[1723821424860,3.65218762,138.76,138.74,0.04849663]
[1723821425071,0.04948762,138.76,138.74,0.04849663]
[1723821425259,3.6028,138.75,138.74,0.04849663]
[1723821425760,0.04948762,138.76,138.67,8.6374]
[1723821425963,1.3148,138.77,138.67,8.6374]
[1723821426160,64.82,138.76,138.67,7.3768]
[1723821426462,6.0,138.75,138.66,1.3021]
[1723821426761,3.6043,138.7,138.64,64.82]
[1723821426964,3.6043,138.7,138.69,0.05078667]
[1723821427259,3.6045,138.69,138.65,3.6053]
[1723821427556,3.6045,138.69,138.68,0.04573416]
[1723821428953,0.05464305,138.71,138.68,0.04573416]
[1723821429665,7.24264305,138.71,138.58,3.63514474]
[1723821429964,3.6059,138.64,138.58,64.82]
[1723821430163,64.82,138.69,138.58,68.41965488]
[1723821430467,13.188,138.7,138.6,64.82]
[1723821430767,3.6059,138.64,138.6,64.82]
[1723821430964,0.05138904,138.66,138.58,3.68941195]
[1723821431155,6.0,138.65,138.61,0.04672623]
[1723821431464,0.04983672,138.63,138.61,0.04672623]
[1723821431665,3.6062,138.62,138.61,0.04672623]
[1723821432564,0.04983672,138.63,138.62,3.6062]
[1723821432768,6.0,138.69,138.62,64.82]
[1723821433002,6.0,138.69,138.63,1.368]
[1723821433268,6.0,138.71,138.64,64.82]
[1723821433566,6.0,138.71,138.63,6.23100147]
[1723821433567,34.82,138.72,138.66,64.82]
[1723821433864,6.0,138.72,138.65,3.6053]
[1723821434068,3.6044,138.69,138.68,0.05385008]
[1723821436457,0.05223213,138.7,138.68,0.05385008]
[1723821439464,3.6044,138.69,138.68,0.05385008]
[1723821439671,0.05223213,138.7,138.68,0.05385008]
[1723821439966,6.0,138.78,138.68,64.87385008]
[1723821440159,7.2024,138.82,138.68,64.87385008]
[1723821440160,73.4327,138.8,138.68,64.87385008]
[1723821440362,73.4327,138.8,138.68,70.87385008]
[1723821440664,73.4327,138.8,138.7,3.604]
[1723821440863,7.188,138.79,138.7,3.604]
[1723821441057,0.05327538,138.76,138.68,70.82]
[1723821441365,64.87327538,138.76,138.71,0.05433704]
[1723821441564,3.6036,138.72,138.71,0.05433704]
[1723821442765,0.05236254,138.75,138.71,3.65823704]
[1723821443065,0.05236254,138.75,138.71,0.05433704]
[1723821443261,3.6032,138.74,138.71,0.05433704]
[1723821443464,0.05236254,138.75,138.71,0.05433704]
[1723821443860,0.05236254,138.75,138.72,64.82]
[1723821444060,0.05236254,138.75,138.74,3.6031]
[1723821444263,0.05236254,138.75,138.74,68.4231]
[1723821444780,0.05236254,138.75,138.74,3.6031]
[1723821445391,0.05236254,138.75,138.73,4.9412]
[1723821445676,0.05236254,138.75,138.73,1.3379]
[1723821445864,3.65516254,138.75,138.73,1.3379]
[1723821446470,3.6031,138.74,138.73,1.3379]
[1723821446677,0.05236254,138.75,138.73,1.3379]
[1723821447075,0.05236254,138.75,138.73,4.9411]
[1723821447279,0.05236254,138.75,138.73,1.3379]
[1723821449686,7.188,138.83,138.74,64.82]
[1723821450186,7.188,138.83,138.75,3.6027]
[1723821450187,3.6022,138.78,138.75,3.6027]
[1723821450580,3.6032,138.74,138.71,4.9462]
[1723821450887,64.82,138.76,138.75,0.04630701]
[1723821451084,72.008,138.76,138.66,4.9656]
[1723821451289,64.82,138.73,138.66,4.9656]
[1723821451586,7.188,138.74,138.66,1.3605]
[1723821451775,13.188,138.74,138.66,1.3605]
[1723821451975,3.6043,138.7,138.66,1.3605]
[1723821452175,13.188,138.74,138.66,1.3605]
[1723821452391,0.05122042,138.69,138.67,0.05246571]
[1723821452579,13.188,138.74,138.67,3.65726571]
[1723821452887,0.04804754,138.69,138.67,3.65726571]
[1723821453076,13.188,138.74,138.67,3.65726571]
[1723821453275,0.05253813,138.69,138.67,3.65726571]
[1723821453515,6.0,138.76,138.67,64.87246571]
[1723821453687,3.6035,138.73,138.67,64.82]
[1723821453989,3.6035,138.73,138.69,3.6042]
[1723821454179,6.0,138.76,138.69,3.6042]
[1723821454878,3.6024,138.77,138.7,64.82]
[1723821455083,3.6024,138.77,138.73,64.82]
[1723821455084,0.04554132,138.74,138.73,64.82]
[1723821455277,0.04554132,138.74,138.71,64.87304176]
[1723821455490,0.04554132,138.74,138.72,3.6036]
[1723821456692,0.04554132,138.74,138.73,3.6033]
[1723821458086,6.0,138.8,138.73,64.82]
[1723821458288,3.6023,138.77,138.73,64.82]
[1723821458484,3.6023,138.77,138.74,3.6029]
[1723821458787,6.0,138.8,138.72,1.3172]
[1723821458988,70.82,138.8,138.73,3.6033]
[1723821459185,0.04832313,138.77,138.75,0.05285874]
[1723821459381,3.6028,138.76,138.75,0.05285874]
[1723821460984,64.82,138.76,138.67,70.8]
[1723821461187,72.008,138.76,138.66,2.6699]
[1723821461388,3.6047,138.68,138.62,64.82]
[1723821461592,64.82,138.74,138.62,70.8]
[1723821461894,64.82,138.74,138.64,3.6056]
[1723821462097,64.82,138.74,138.64,64.82]
[1723821462298,6.98,138.75,138.67,0.04942738]
[1723821462299,0.04892341,138.69,138.67,0.04942738]
[1723821462488,0.04892341,138.69,138.68,3.6046]
[1723821462885,1.0,138.75,138.68,3.6046]
[1723821462886,3.6036,138.72,138.68,3.6046]
[1723821463705,0.04662808,138.7,138.69,3.6043]
[1723821463900,0.04662808,138.7,138.69,0.04707302]
[1723821464793,3.65072808,138.7,138.69,0.04707302]
[1723821466897,0.04662808,138.7,138.69,0.04707302]
[1723821469199,0.04662808,138.7,138.69,3.65147302]
[1723821469511,5.98,138.78,138.69,0.04707302]
[1723821469700,5.59383398,138.77,138.71,64.82]
[1723821469903,3.6024,138.77,138.71,68.36399185]
[1723821470103,3.6024,138.77,138.73,3.6032]
[1723821470304,5.98,138.78,138.71,64.82]
[1723821470510,1.3638,138.81,138.71,64.82]
[1723821470711,5.59441969,138.8,138.72,3.6034]
[1723821470903,5.59441969,138.79,138.72,3.6034]
[1723821471209,0.04753301,138.76,138.73,0.05131665]
[1723821471604,3.603,138.75,138.73,0.05131665]
[1723821472007,0.04753301,138.76,138.73,0.05131665]
[1723821472206,3.6028,138.75,138.73,0.05131665]
[1723821473305,0.04753301,138.76,138.73,0.05131665]
[1723821473506,0.04753301,138.76,138.75,64.82]
[1723821473908,0.04753301,138.76,138.73,0.05131665]
[1723821475805,3.65023301,138.76,138.73,3.65451665]
[1723821478915,0.04753301,138.76,138.74,3.6031]
[1723821479215,2.6641,138.83,138.74,64.82]
[1723821479419,3.6017,138.8,138.77,3.6022]
[1723821480410,3.6017,138.8,138.77,3.65227838]
[1723821480411,3.65479444,138.8,138.77,3.65227838]
[1723821480610,0.05309444,138.8,138.77,0.05007838]
[1723821481013,3.6021,138.78,138.77,0.05007838]
[1723821483520,7.1376156,138.78,138.77,0.05007838]
[1723821483711,12.73935823,138.78,138.77,0.05007838]
[1723821484921,9.20384263,138.78,138.77,0.05007838]
[1723821485131,3.6021,138.78,138.77,0.05007838]
[1723821487016,0.05309444,138.8,138.77,0.05007838]
[1723821487524,3.65469444,138.8,138.77,3.65227838]
[1723821487713,3.65469444,138.8,138.77,0.05007838]
[1723821489517,0.05309444,138.8,138.77,0.05007838]
[1723821489917,3.6021,138.78,138.77,0.05007838]
[1723821492124,0.05309444,138.8,138.79,3.6018]
[1723821492432,0.05309444,138.8,138.79,68.4218]
[1723821492624,0.05309444,138.8,138.79,64.82]
[1723821492822,0.05309444,138.8,138.79,68.4218]
[1723821493325,0.05309444,138.8,138.79,64.82]
[1723821493821,0.05309444,138.8,138.77,0.05007838]
[1723821494224,3.6021,138.78,138.77,0.05007838]
[1723821496523,0.05309444,138.8,138.77,0.05007838]
[1723821496833,0.05309444,138.8,138.78,64.82]
[1723821497133,0.05309444,138.8,138.77,0.05007838]
[1723821498733,3.6018,138.79,138.77,0.05007838]
[1723821499325,3.6021,138.78,138.77,0.05007838]
[1723821500333,3.6019,138.79,138.77,0.05007838]
[1723821500527,0.05309444,138.8,138.77,0.05007838]
[1723821500935,3.6021,138.78,138.77,0.05007838]
[1723821503233,0.05309444,138.8,138.77,0.05007838]
[1723821503234,3.6019,138.79,138.77,0.05007838]
[1723821503633,0.05309444,138.8,138.77,0.05007838]
[1723821503822,3.6021,138.78,138.77,0.05007838]
[1723821504434,3.6019,138.79,138.77,0.05007838]
[1723821505528,3.6021,138.78,138.77,0.05007838]
[1723821506331,9.17443135,138.78,138.77,0.05007838]
[1723821506932,5.57233135,138.78,138.7,70.78]
[1723821507133,5.57233135,138.77,138.71,3.6039]
[1723821507431,5.57233135,138.77,138.7,70.78]
[1723821507432,12.21095245,138.79,138.7,70.78]
[1723821507635,5.56866553,138.78,138.7,64.82]
[1723821507835,5.56866553,138.77,138.7,68.37183121]
[1723821508030,5.96,138.8,138.72,64.82]
[1723821508229,5.56878303,138.79,138.72,64.82]
[1723821508534,0.05197419,138.75,138.73,0.04795014]
[1723821508931,3.6031,138.74,138.73,0.04795014]
[1723821509828,0.05352578,138.75,138.73,0.04795014]
[1723821510532,3.6031,138.74,138.73,0.04795014]
[1723821511941,3.65662578,138.75,138.73,0.04795014]
[1723821512237,0.05352578,138.75,138.73,0.04795014]
[1723821512438,3.6031,138.74,138.73,0.04795014]
[1723821512633,5.56337054,138.74,138.66,3.8971]
[1723821512833,5.56337054,138.73,138.66,7.5021]
[1723821513038,5.56337054,138.74,138.66,2.6401]
[1723821513241,1.2865,138.74,138.66,1.3158]
[1723821513452,3.6043,138.7,138.66,69.741]
[1723821513632,1.2865,138.74,138.66,69.741]
[1723821513837,0.04943441,138.69,138.67,0.04823407]
[1723821514140,3.6044,138.7,138.67,0.04823407]
[1723821514342,0.05187719,138.69,138.67,0.04823407]
[1723821514738,3.65637719,138.69,138.67,0.04823407]
[1723821515441,3.6047,138.68,138.67,0.04823407]
[1723821515836,0.05187719,138.69,138.67,0.04823407]
[1723821516032,11.20101403,138.86,138.67,0.04823407]
[1723821516033,71.88231071,138.84,138.68,129.64]
[1723821516235,5.5732232,138.82,138.75,64.82]
[1723821516441,5.5732232,138.81,138.75,70.78]
[1723821516746,5.5732232,138.8,138.76,3.6025]
[1723821516938,6.22852975,138.83,138.75,70.78]
[1723821517137,3.6022,138.78,138.77,0.05034155]
[1723821518343,3.6029,138.75,138.71,64.82]
[1723821518837,12.18852975,138.83,138.73,64.82]
[1723821519044,5.57195281,138.82,138.75,64.82]
[1723821519248,12.18852975,138.83,138.73,68.4232]
[1723821519249,5.57195281,138.81,138.73,68.4232]
[1723821519441,0.05152579,138.78,138.76,0.05294013]
[1723821520741,5.57260328,138.77,138.69,64.82]
[1723821520941,5.57260328,138.76,138.67,64.82]
[1723821521146,3.6039,138.71,138.67,68.4247]
[1723821521932,0.05445153,138.7,138.68,0.04802104]
[1723821522445,3.6044,138.69,138.68,0.04802104]
[1723821523433,3.65875153,138.7,138.68,0.04802104]
[1723821523634,0.05445153,138.7,138.68,0.04802104]
[1723821523938,0.05445153,138.7,138.68,3.65262104]
[1723821524547,3.65865153,138.7,138.68,0.04802104]
[1723821525744,3.6044,138.69,138.68,0.04802104]
[1723821525944,0.05445153,138.7,138.68,0.04802104]
[1723821526841,3.6044,138.69,138.68,0.04802104]
[1723821527939,3.6054,138.66,138.63,64.82]
[1723821528143,5.96,138.69,138.63,64.82]
[1723821528537,3.6056,138.65,138.63,64.82]
[1723821528744,3.6056,138.65,138.62,3.606]
[1723821528745,7.3411,138.69,138.61,64.82]
[1723821528941,5.57464019,138.68,138.61,64.82]
[1723821529238,3.6051,138.67,138.64,3.6056]
[1723821529643,7.3411,138.69,138.64,3.65958322]
[1723821529943,0.05139136,138.66,138.64,3.65958322]
[1723821530948,0.05139136,138.66,138.64,0.05398322]
[1723821531440,3.6054,138.65,138.64,0.05398322]
[1723821532157,0.05139136,138.66,138.58,64.82]
[1723821532158,3.6068,138.6,138.58,64.82]
[1723821532352,0.05139136,138.66,138.58,64.82]
[1723821532651,3.6067,138.61,138.58,68.4273]
[1723821533152,9.5908158,138.64,138.55,4.035]
[1723821533451,9.5908158,138.64,138.55,68.855]
[1723821533656,1.3306,138.63,138.55,72.4628]
[1723821533848,9.5908158,138.64,138.58,0.05525179]
[1723821533849,0.04672197,138.61,138.58,0.05525179]
[1723821534259,3.6069,138.6,138.58,0.05525179]
[1723821534753,3.607,138.59,138.58,0.05525179]
[1723821536455,9.567,138.59,138.58,0.05525179]
[1723821537555,5.96,138.59,138.58,0.05525179]
[1723821538052,9.567,138.59,138.58,0.05525179]
[1723821538658,0.04672197,138.61,138.58,0.05525179]
[1723821538957,6.00672197,138.61,138.58,0.05525179]
[1723821539160,3.6069,138.6,138.58,0.05525179]
[1723821539555,0.04672197,138.61,138.58,0.05525179]
[1723821539860,3.65332197,138.61,138.58,0.05525179]
[1723821540252,0.04672197,138.61,138.58,0.05525179]
[1723821541151,3.6069,138.6,138.58,0.05525179]
[1723821542761,3.607,138.59,138.58,0.05525179]
[1723821542955,0.04672197,138.61,138.58,0.05525179]
[1723821543358,0.04672197,138.61,138.59,64.82]
[1723821543553,0.04672197,138.61,138.6,64.82]
[1723821543759,5.96,138.66,138.6,64.82]
[1723821544058,11.1894,138.71,138.65,64.82]
[1723821544262,5.96,138.7,138.65,64.82]
[1723821544651,3.6052,138.66,138.65,64.82]
[1723821545661,3.605,138.67,138.65,64.82]
[1723821545866,0.0533452,138.69,138.65,64.82]
[1723821546464,0.0533452,138.69,138.64,0.05010831]
[1723821546465,0.0533452,138.69,138.67,64.82]
[1723821546659,0.0533452,138.69,138.67,68.4248]
[1723821546858,0.0533452,138.69,138.67,64.82]
[1723821547160,0.0533452,138.69,138.68,3.6047]
[1723821547361,0.0533452,138.69,138.67,64.82]
[1723821547665,0.0533452,138.69,138.67,0.05361907]
[1723821547854,3.6048,138.68,138.67,0.05361907]
[1723821550570,0.0533452,138.69,138.67,0.05361907]
[1723821551465,0.0533452,138.69,138.67,64.87361907]
[1723821551963,0.0533452,138.69,138.68,3.6047]
[1723821552268,0.0533452,138.69,138.67,64.87361907]
[1723821552469,0.0533452,138.69,138.67,68.47841907]
[1723821552768,0.0533452,138.69,138.67,74.41841907]
[1723821552962,0.0533452,138.69,138.68,3.6047]
[1723821557072,229.94,138.78,138.72,3.6035]
[1723821557304,68.7462,138.8,138.71,64.82]
[1723821557467,68.7462,138.8,138.69,64.82]
[1723821557780,64.82,138.76,138.65,64.82]
[1723821558171,0.04841293,138.72,138.69,0.05437981]
[1723821558665,3.6041,138.71,138.69,0.05437981]
[1723821558861,0.04841293,138.72,138.69,0.05437981]
[1723821559065,3.6041,138.7,138.69,0.05437981]
[1723821564081,3.604,138.71,138.69,0.05437981]
[1723821564385,0.04841293,138.72,138.69,0.05437981]
[1723821564568,3.65211293,138.72,138.69,0.05437981]
[1723821565077,0.04841293,138.72,138.7,3.6039]
[1723821565278,0.04841293,138.72,138.71,64.82]
[1723821566680,0.04841293,138.72,138.69,68.87867981]
[1723821567382,0.04841293,138.72,138.71,3.6038]
[1723821567779,0.04841293,138.72,138.71,68.4238]
[1723821568181,0.04841293,138.72,138.69,66.17267981]
[1723821568783,0.04841293,138.72,138.7,3.6041]
[1723821569076,0.04841293,138.72,138.69,66.17267981]
[1723821569278,0.04841293,138.72,138.71,68.4238]
[1723821570007,0.04841293,138.72,138.71,64.82]
[1723821570185,0.04841293,138.72,138.69,66.17267981]
[1723821570477,3.65211293,138.72,138.69,69.77687981]
[1723821570686,3.65211293,138.72,138.69,66.17267981]
[1723821571078,3.65211293,138.72,138.69,69.77697981]
[1723821571079,3.604,138.71,138.69,69.77697981]
[1723821571376,0.04841293,138.72,138.69,69.77697981]
[1723821571770,3.65211293,138.72,138.69,69.77697981]
[1723821572580,0.04841293,138.72,138.69,66.17267981]
[1723821573486,0.04841293,138.72,138.7,3.6039]
[1723821574482,3.6038,138.71,138.69,64.87437981]
[1723821574682,0.04841293,138.72,138.69,0.05437981]
[1723821574984,3.6041,138.71,138.69,0.05437981]
[1723821575582,3.6041,138.71,138.69,3.65867981]
[1723821575980,3.65211293,138.72,138.69,0.05437981]
[1723821576192,0.04841293,138.72,138.69,0.05437981]
[1723821576986,0.04841293,138.72,138.69,1.34467981]
[1723821577390,0.04841293,138.72,138.71,3.6038]
[1723821579385,0.04841293,138.72,138.69,1.34467981]
[1723821579996,3.6041,138.7,138.69,0.05437981]
[1723821582686,73.33571293,138.72,138.6,66.0967]
[1723821582891,73.2873,138.72,138.6,66.0967]
[1723821583085,73.2873,138.72,138.62,3.6061]
[1723821583290,7.209,138.7,138.62,3.6061]
[1723821583490,5.92,138.69,138.62,3.6061]
[1723821583795,3.6054,138.65,138.64,0.04769999]
[1723821583989,0.05135887,138.67,138.64,0.04769999]
[1723821584389,3.6052,138.66,138.64,0.04769999]
[1723821585797,0.05135887,138.67,138.64,0.04769999]
[1723821586001,0.05135887,138.67,138.66,64.82]
[1723821586185,0.05135887,138.67,138.66,68.4251]
[1723821587090,5.92,138.72,138.68,3.6045]
[1723821587291,5.92,138.77,138.69,64.82]
[1723821587490,1.0,138.78,138.71,64.82]
[1723821587692,6.92,138.78,138.71,64.82]
[1723821588197,3.6028,138.75,138.73,0.04897022]
[1723821588800,3.603,138.74,138.73,0.04897022]
[1723821595905,0.05064987,138.76,138.73,0.04897022]
[1723821597519,3.6029,138.75,138.73,0.04897022]
[1723821598813,3.65324987,138.76,138.73,0.04897022]
[1723821600216,0.05064987,138.76,138.73,0.04897022]
[1723821601313,3.6029,138.74,138.73,0.04897022]
[1723821602015,3.6028,138.75,138.73,0.04897022]
[1723821602322,0.05064987,138.76,138.73,0.04897022]
[1723821603319,3.6029,138.74,138.73,0.04897022]
[1723821605613,3.6041,138.7,138.66,1.3264]
[1723821605818,7.209,138.75,138.66,1.3264]
[1723821606019,51.94,138.75,138.68,3.6045]
[1723821606225,51.94,138.75,138.66,53.2664]
[1723821606423,5.92,138.78,138.66,53.2664]
[1723821606424,5.92,138.78,138.7,51.94]
[1723821606627,5.57195482,138.77,138.7,51.94]
[1723821606817,5.92,138.78,138.73,0.05136223]
[1723821607019,0.05021164,138.75,138.73,0.05136223]
[1723821607526,3.6029,138.74,138.73,0.05136223]
[1723821610220,3.64077977,138.74,138.65,66.2463]
[1723821610431,64.89,138.72,138.61,64.89]
[1723821610722,11.4939977,138.73,138.6,2.6075]
[1723821610723,64.89,138.69,138.6,2.6075]
[1723821610914,3.6056,138.64,138.6,6.2139]
[1723821611319,3.65267185,138.67,138.6,2.6075]
[1723821611514,3.65778237,138.63,138.61,0.05551006]
[1723821611920,3.606,138.62,138.61,0.05551006]
[1723821615125,3.66084437,138.63,138.61,0.05551006]
[1723821615627,0.05494437,138.63,138.61,0.05551006]
[1723821616237,3.606,138.62,138.61,0.05551006]
[1723821618032,9.526,138.62,138.61,0.05551006]
[1723821618330,3.606,138.62,138.61,0.05551006]
[1723821623634,3.6073,138.57,138.53,1.2722]
[1723821624228,64.89,138.62,138.53,4.8804]
[1723821624430,72.099,138.62,138.53,4.8804]
[1723821624831,3.6083,138.54,138.51,8.5367]
[1723821625034,3.6083,138.54,138.51,2.6167]
[1723821625261,3.56622995,138.57,138.49,4.9273]
[1723821625442,3.6085,138.53,138.51,0.04955333]
[1723821625831,3.6086,138.52,138.51,0.04955333]
[1723821627944,64.89,138.53,138.42,3.59220815]
[1723821628143,7.27152408,138.54,138.42,3.59220815]
[1723821628144,64.89,138.52,138.43,3.611]
[1723821628343,64.89,138.52,138.42,68.48220815]
[1723821628635,64.89,138.52,138.42,64.89]
[1723821628636,3.6097,138.48,138.42,64.89]
[1723821628938,3.6097,138.48,138.42,68.55503722]
[1723821629158,64.89,138.52,138.43,3.6108]
[1723821629159,3.61,138.47,138.43,3.6108]
[1723821629647,0.05343756,138.46,138.44,0.04647281]
[1723821630037,3.66373756,138.46,138.44,0.04647281]
[1723821630542,3.6105,138.45,138.44,0.04647281]
[1723821632042,3.66373756,138.46,138.44,0.04647281]
[1723821632238,0.05343756,138.46,138.44,0.04647281]
[1723821633736,3.66383756,138.46,138.44,0.04647281]
[1723821634031,0.05343756,138.46,138.44,0.04647281]
[1723821634839,3.6105,138.45,138.44,0.04647281]
[1723821635241,64.94343756,138.46,138.36,66.26]
[1723821635554,64.94343756,138.46,138.38,3.6121]
[1723821635945,64.89,138.46,138.38,3.6121]
[1723821636338,1.3287,138.47,138.33,2.5917]
[1723821636339,64.89,138.42,138.41,0.05436304]
[1723821636643,3.6124,138.38,138.33,2.5917]
[1723821636843,9.47740439,138.42,138.33,2.5917]
[1723821637545,9.47740439,138.42,138.36,0.04832952]
[1723821637841,3.6123,138.38,138.36,0.04832952]
[1723821638239,0.05181248,138.39,138.36,0.04832952]
[1723821638441,3.6126,138.37,138.36,0.04832952]
[1723821638647,0.05181248,138.39,138.36,0.04832952]
[1723821639143,3.66401248,138.39,138.36,0.04832952]
[1723821639646,0.05181248,138.39,138.36,0.04832952]
[1723821640040,0.05181248,138.39,138.37,68.54720994]
[1723821640343,64.89,138.49,138.4,64.89]
[1723821640551,3.52969166,138.48,138.4,64.89]
[1723821640739,7.1771,138.5,138.4,64.89]
[1723821641240,3.66483868,138.46,138.44,0.05051884]
[1723821641763,3.6105,138.45,138.44,0.05051884]
[1723821642545,0.05443868,138.46,138.44,0.05051884]
[1723821643047,3.66483868,138.46,138.44,0.05051884]
[1723821643343,0.05443868,138.46,138.44,0.05051884]
[1723821643742,3.66473868,138.46,138.44,0.05051884]
[1723821643937,0.05443868,138.46,138.44,0.05051884]
[1723821645749,3.66483868,138.46,138.44,0.05051884]
[1723821645948,0.05443868,138.46,138.44,0.05051884]
[1723821646847,3.66493868,138.46,138.44,0.05051884]
[1723821647045,0.05443868,138.46,138.44,0.05051884]
[1723821647452,3.6105,138.45,138.44,0.05051884]
[1723821648651,9.5105,138.45,138.44,0.05051884]
[1723821649347,70.79,138.45,138.36,5.9]
[1723821649656,64.89,138.43,138.32,3.9491]
[1723821649852,3.6126,138.37,138.32,3.9491]
[1723821650047,3.63622724,138.39,138.32,7.5629]
[1723821650247,5.9,138.4,138.32,7.5629]
[1723821650752,3.6127,138.37,138.32,7.5629]
[1723821651154,0.04754333,138.37,138.34,0.05021341]
[1723821651456,3.6131,138.35,138.34,0.05021341]
[1723821652252,0.04754333,138.37,138.34,0.05021341]
[1723821652453,0.04754333,138.37,138.34,3.66341341]
[1723821652749,0.04754333,138.37,138.34,0.05021341]
[1723821652947,0.04754333,138.37,138.35,3.613]
[1723821653147,0.04754333,138.37,138.35,64.89]
[1723821653544,0.04754333,138.37,138.36,3.6128]
[1723821653760,9.50535102,138.43,138.35,64.89]
[1723821653953,3.6117,138.41,138.37,3.6124]
[1723821654341,5.9,138.43,138.37,3.6124]
[1723821654647,9.45265886,138.43,138.37,3.6124]
[1723821654973,5.9,138.43,138.37,64.89]
[1723821655253,0.04549806,138.41,138.39,0.04605654]
[1723821655444,0.04549806,138.41,138.4,3.6118]
[1723821656058,0.04549806,138.41,138.39,66.25395654]
[1723821656253,0.04549806,138.41,138.39,1.36395654]
[1723821656654,0.04549806,138.41,138.39,4.97575654]
[1723821656854,0.04549806,138.41,138.39,1.36395654]
[1723821657253,0.04549806,138.41,138.4,3.6118]
[1723821657755,0.04549806,138.41,138.39,4.97595654]
[1723821658159,0.04549806,138.41,138.39,0.04605654]
[1723821658360,3.65719806,138.41,138.39,0.04605654]
[1723821658856,3.65719806,138.41,138.39,3.65795654]
[1723821658857,0.04549806,138.41,138.39,3.65795654]
[1723821659158,0.04549806,138.41,138.39,0.04605654]
[1723821659660,3.6106,138.45,138.4,64.89]
[1723821660152,7.2126,138.51,138.41,64.89]
[1723821660355,72.1026,138.51,138.41,68.46314225]
[1723821660558,3.6102,138.46,138.43,3.6109]
[1723821660756,3.6110507,138.49,138.45,0.05258377]
[1723821660960,0.04949401,138.47,138.45,0.05258377]
[1723821661158,3.6102,138.46,138.45,0.05258377]
[1723821661662,5.9,138.46,138.38,1.3644]
[1723821661867,64.89,138.45,138.38,1.3644]
[1723821662262,64.89,138.45,138.36,1.3446]
[1723821662664,3.6114,138.42,138.38,3.6122]
[1723821662869,0.05016154,138.42,138.39,0.05492634]
[1723821663868,3.5561737,138.49,138.4,64.89]
[1723821664173,70.79,138.53,138.42,64.89]
[1723821664359,5.9,138.53,138.44,64.89]
[1723821664559,70.79,138.53,138.43,1.287]
[1723821664767,5.9,138.53,138.45,64.89]
[1723821664972,3.6089,138.52,138.48,3.6095]
[1723821665276,5.9,138.53,138.45,64.89]
[1723821665469,0.05247835,138.5,138.48,3.65912047]
[1723821666683,5.9,138.53,138.48,0.04962047]
[1723821666979,75.80050863,138.57,138.48,1.37422047]
[1723821667284,3.6083,138.54,138.5,3.6091]
[1723821668281,3.6083,138.54,138.48,1.3246]
[1723821668282,0.04896548,138.53,138.51,0.04660145]
[1723821668481,3.67976216,138.6,138.51,64.93660145]
[1723821668788,3.6074,138.57,138.54,3.6081]
[1723821668982,3.6074,138.57,138.52,1.394]
[1723821669176,68.56976216,138.6,138.52,1.394]
[1723821669479,64.89,138.6,138.52,1.394]
[1723821669781,0.05508134,138.57,138.55,0.05058601]
[1723821671583,3.66258134,138.57,138.55,0.05058601]
[1723821673282,0.05508134,138.57,138.55,0.05058601]
[1723821673689,3.66258134,138.57,138.55,0.05058601]
[1723821673916,0.05508134,138.57,138.55,0.05058601]
[1723821674489,0.05508134,138.57,138.55,3.65828601]
[1723821674684,0.05508134,138.57,138.55,0.05058601]
[1723821674887,5.9,138.61,138.55,64.94058601]
[1723821675086,69.01443981,138.62,138.55,64.94058601]
[1723821675288,69.01443981,138.62,138.57,3.6072]
[1723821675587,69.01443981,138.62,138.55,64.94058601]
[1723821675588,69.01443981,138.62,138.55,0.05058601]
[1723821675779,69.01443981,138.62,138.55,3.6077]
[1723821676182,0.05455762,138.6,138.57,0.05409513]
[1723821676392,3.6071,138.58,138.57,0.05409513]
[1723821676594,0.05455762,138.6,138.57,0.05409513]
[1723821677495,0.05455762,138.6,138.58,3.6069]
[1723821678292,0.05455762,138.6,138.59,3.6068]
[1723821678712,0.05455762,138.6,138.58,3.6069]
[1723821679286,3.66115762,138.6,138.57,3.66129513]